[Event "NJSK 2018 Jeugd C"]
[Site "Assen, Netherlands"]
[Date "2018.05.03"]
[Round "7.2"]
[White "Kutchoukov, Daniel"]
[Black "Nguyen, Lucas"]
[Result "1-0"]
[TimeControl "40/90m+30sec/move"]
[WhiteElo "1902"]
[BlackElo "1919"]

1. e4 {[%clk 01:30:59]} c5 {[%clk 01:30:56]} {[%emt 00:00:05]} 2. Nc3 {[%clk
01:31:25]} {[%emt 00:00:03]} Nc6 {[%clk 01:31:24]} {[%emt 00:00:02]} 3. Bb5
{[%clk 01:31:51]} {[%emt 00:00:04]} Nd4 {[%clk 01:31:51]} {[%emt 00:00:03]} 4.
Bc4 {[%clk 01:32:18]} {[%emt 00:00:03]} e6 {[%clk 01:32:00]} {[%emt 00:00:22]}
5. Nge2 {[%clk 01:32:44]} {[%emt 00:00:04]} Nf6 {[%clk 01:30:28]} {[%emt
00:02:02]} 6. O-O {[%clk 01:33:06]} {[%emt 00:00:07]} a6 {[%clk 01:29:52]}
{[%emt 00:01:06]} 7. d3 {[%clk 01:33:27]} {[%emt 00:00:09]} d5 {[%clk
01:29:49]} {[%emt 00:00:33]} 8. exd5 {[%clk 01:33:17]} {[%emt 00:00:40]} exd5
{[%clk 01:30:16]} {[%emt 00:00:03]} 9. Nxd5 {[%clk 01:33:29]} {[%emt 00:00:18]}
Nxd5 {[%clk 01:27:29]} {[%emt 00:03:17]} 10. Nxd4 {[%clk 01:33:52]} {[%emt
00:00:07]} cxd4 {[%clk 01:26:58]} {[%emt 00:01:01]} 11. Qh5 {[%clk 01:34:15]}
{[%emt 00:00:07]} Be7 {[%clk 01:22:02]} {[%emt 00:05:27]} 12. Qxd5 {[%clk
01:30:48]} {[%emt 00:03:57]} O-O {[%clk 01:21:25]} {[%emt 00:01:07]} 13. Re1
{[%clk 01:27:17]} {[%emt 00:04:01]} Bf6 {[%clk 01:20:47]} {[%emt 00:01:07]} 14.
Bf4 {[%clk 01:24:02]} {[%emt 00:03:45]} Qb6 {[%clk 01:18:26]} {[%emt 00:02:50]}
15. Qxf7+ {[%clk 01:17:10]} {[%emt 00:07:23]} 1-0

[Event "NJSK 2018 Jeugd C"]
[Site "Assen, Netherlands"]
[Date "2018.05.03"]
[Round "7.3"]
[White "Shakhverdian, William"]
[Black "Elgersma, Onno"]
[Result "0-1"]
[TimeControl "40/90m+30sec/move"]
[WhiteElo "1777"]
[BlackElo "2060"]

1. e4 {[%clk 01:30:59]} e6 {[%clk 01:30:51]} {[%emt 00:00:11]} 2. d4 {[%clk
01:31:13]} {[%emt 00:00:16]} d5 {[%clk 01:31:16]} {[%emt 00:00:05]} 3. exd5
{[%clk 01:31:35]} {[%emt 00:00:07]} exd5 {[%clk 01:31:38]} {[%emt 00:00:08]} 4.
Bd3 {[%clk 01:31:57]} {[%emt 00:00:08]} Nc6 {[%clk 01:30:34]} {[%emt 00:01:35]}
5. c3 {[%clk 01:32:20]} {[%emt 00:00:07]} Bd6 {[%clk 01:29:05]} {[%emt
00:01:59]} 6. Nf3 {[%clk 01:32:45]} {[%emt 00:00:05]} Bg4 {[%clk 01:29:26]}
{[%emt 00:00:09]} 7. O-O {[%clk 01:33:02]} {[%emt 00:00:12]} Qf6 {[%clk
01:14:45]} {[%emt 00:15:10]} 8. Qe1+ {[%clk 01:17:46]} {[%emt 00:15:47]} Nge7
{[%clk 01:08:49]} {[%emt 00:06:26]} 9. Bg5 {[%clk 01:17:27]} {[%emt 00:00:50]}
Qe6 {[%clk 01:09:14]} {[%emt 00:00:05]} 10. Qxe6 {[%clk 01:17:46]} {[%emt
00:00:10]} fxe6 {[%clk 01:09:11]} {[%emt 00:00:34]} 11. Nbd2 {[%clk 01:17:54]}
{[%emt 00:00:21]} O-O {[%clk 00:57:51]} {[%emt 00:11:50]} 12. h3 {[%clk
01:15:48]} {[%emt 00:02:36]} Bxf3 {[%clk 00:46:41]} {[%emt 00:11:40]} 13. Nxf3
{[%clk 01:15:51]} {[%emt 00:00:27]} Nf5 {[%clk 00:41:26]} {[%emt 00:05:46]} 14.
Rae1 {[%clk 01:13:58]} {[%emt 00:02:23]} h6 {[%clk 00:39:55]} {[%emt 00:02:01]}
15. Bd2 {[%clk 01:13:43]} {[%emt 00:00:44]} Rf6 {[%clk 00:35:05]} {[%emt
00:05:20]} 16. Re2 {[%clk 01:10:26]} {[%emt 00:03:48]} g5 {[%clk 00:35:13]}
{[%emt 00:00:22]} 17. Rfe1 {[%clk 01:09:52]} {[%emt 00:01:04]} Ng7 {[%clk
00:35:17]} {[%emt 00:00:26]} 18. Nh2 {[%clk 01:04:55]} {[%emt 00:05:27]} Bxh2+
19. Kxh2 {[%clk 01:05:24]} Raf8 {[%clk 00:34:46]} {[%emt 00:00:19]} 20. f3
{[%clk 01:05:05]} {[%emt 00:00:50]} Kf7 {[%clk 00:33:53]} {[%emt 00:01:24]} 21.
b4 {[%clk 01:04:13]} {[%emt 00:01:22]} Ne8 {[%clk 00:27:23]} {[%emt 00:06:59]}
22. b5 {[%clk 00:48:51]} {[%emt 00:15:52]} Na5 {[%clk 00:24:16]} {[%emt
00:03:37]} 23. c4 {[%clk 00:46:05]} {[%emt 00:03:16]} Nxc4 {[%clk 00:07:14]}
{[%emt 00:17:32]} 24. Bxc4 {[%clk 00:46:30]} {[%emt 00:00:04]} dxc4 {[%clk
00:07:43]} {[%emt 00:00:02]} 25. Rc1 {[%clk 00:45:16]} {[%emt 00:01:43]} Nd6
{[%clk 00:07:47]} {[%emt 00:00:26]} 26. Bb4 {[%clk 00:45:36]} {[%emt 00:00:10]}
Rf5 {[%clk 00:07:21]} {[%emt 00:00:56]} 27. a4 {[%clk 00:41:10]} {[%emt
00:04:55]} Rc8 {[%clk 00:06:14]} {[%emt 00:01:37]} 28. Rec2 {[%clk 00:41:29]}
{[%emt 00:00:11]} Ne8 {[%clk 00:05:49]} {[%emt 00:00:56]} 29. Rxc4 {[%clk
00:41:51]} {[%emt 00:00:07]} Rd5 {[%clk 00:06:06]} {[%emt 00:00:13]} 30. Ba3
{[%clk 00:37:29]} {[%emt 00:04:53]} Rcd8 {[%clk 00:06:06]} {[%emt 00:00:30]} 31.
Bb2 {[%clk 00:37:47]} {[%emt 00:00:12]} Rc8 {[%clk 00:06:01]} {[%emt 00:00:36]}
32. Ba3 {[%clk 00:37:38]} {[%emt 00:00:38]} Rd7 {[%clk 00:06:13]} {[%emt
00:00:19]} 33. f4 {[%clk 00:31:11]} {[%emt 00:06:57]} Nf6 {[%clk 00:04:19]}
{[%emt 00:02:24]} 34. fxg5 {[%clk 00:31:10]} {[%emt 00:00:30]} hxg5 {[%clk
00:04:48]} {[%emt 00:00:01]} 35. Rf1 {[%clk 00:27:38]} {[%emt 00:04:02]} Kg6
{[%clk 00:04:52]} {[%emt 00:00:27]} 36. Re1 {[%clk 00:26:23]} {[%emt 00:01:45]}
Re8 {[%clk 00:03:21]} {[%emt 00:02:00]} 37. Re5 {[%clk 00:25:28]} {[%emt
00:01:24]} Rh7 {[%clk 00:02:39]} {[%emt 00:01:13]} 38. Kg3 {[%clk 00:24:58]}
{[%emt 00:01:00]} Nd7 {[%clk 00:02:34]} {[%emt 00:00:36]} 39. Re4 {[%clk
00:24:26]} {[%emt 00:01:01]} Nb6 {[%clk 00:02:09]} {[%emt 00:00:57]} 40. Rc5
{[%clk 00:24:01]} {[%emt 00:00:55]} Nxa4 {[%clk 00:01:33]} {[%emt 00:01:05]} 41.
Rce5 {[%clk 00:24:21]} {[%emt 00:00:09]} Nc3 {[%clk 00:00:57]} {[%emt
00:01:07]} 42. Re3 {[%clk 00:17:36]} {[%emt 00:07:14]} Na4 {[%clk 00:01:03]}
{[%emt 00:00:26]} 43. Rxe6+ {[%clk 00:15:17]} {[%emt 00:02:49]} Rxe6 {[%clk
00:01:13]} {[%emt 00:00:19]} 44. Rxe6+ {[%clk 00:15:43]} {[%emt 00:00:03]} Kf5
{[%clk 00:01:20]} {[%emt 00:00:23]} 45. Re5+ {[%clk 00:16:04]} {[%emt
00:00:09]} Kf6 {[%clk 00:01:31]} {[%emt 00:00:20]} 46. Bc1 {[%clk 00:15:57]}
{[%emt 00:00:37]} Rh5 {[%clk 00:01:23]} {[%emt 00:00:38]} 47. Kh2 {[%clk
00:15:05]} {[%emt 00:01:21]} Rh7 {[%clk 00:00:52]} {[%emt 00:01:02]} 48. Bxg5+
{[%clk 00:13:44]} {[%emt 00:01:51]} Kf7 {[%clk 00:00:45]} {[%emt 00:00:37]} 49.
h4 {[%clk 00:12:35]} {[%emt 00:01:39]} Nc3 {[%clk 00:00:35]} {[%emt 00:00:40]}
50. Rc5 {[%clk 00:12:27]} {[%emt 00:00:37]} Ne4 {[%clk 00:00:46]} {[%emt
00:00:20]} 51. Rxc7+ {[%clk 00:12:43]} {[%emt 00:00:14]} Kg6 {[%clk 00:01:13]}
{[%emt 00:00:03]} 52. Rxh7 {[%clk 00:12:25]} {[%emt 00:00:48]} Kxh7 {[%clk
00:01:41]} {[%emt 00:00:02]} 53. Be7 {[%clk 00:04:01]} {[%emt 00:08:53]} a5
{[%clk 00:01:24]} {[%emt 00:00:48]} 54. bxa6 {[%clk 00:04:10]} {[%emt
00:00:20]} bxa6 {[%clk 00:01:53]} {[%emt 00:00:02]} 55. d5 {[%clk 00:04:18]}
{[%emt 00:00:21]} Kg6 {[%clk 00:02:02]} {[%emt 00:00:21]} 56. d6 {[%clk
00:01:31]} {[%emt 00:03:18]} Kf7 {[%clk 00:02:21]} {[%emt 00:00:11]} 57. h5
{[%clk 00:00:45]} {[%emt 00:01:16]} a5 {[%clk 00:02:26]} {[%emt 00:00:25]} 58.
h6 {[%clk 00:01:05]} {[%emt 00:00:09]} Nc5 {[%clk 00:02:51]} {[%emt 00:00:05]}
59. Bd8 {[%clk 00:00:35]} {[%emt 00:01:01]} a4 {[%clk 00:03:00]} {[%emt
00:00:21]} 60. Bb6 {[%clk 00:00:45]} {[%emt 00:00:19]} Nd7 {[%clk 00:03:17]}
{[%emt 00:00:13]} 61. g4 {[%clk 00:00:54]} {[%emt 00:00:22]} Nxb6 {[%clk
00:03:28]} {[%emt 00:00:19]} 0-1

[Event "NJSK 2018 Jeugd C"]
[Site "Assen, Netherlands"]
[Date "2018.05.03"]
[Round "7.4"]
[White "Bleeker, Kasper"]
[Black "Maters, Arthur"]
[Result "1-0"]
[TimeControl "40/90m+30sec/move"]
[WhiteElo "1737"]
[BlackElo "1895"]

1. e4 {[%clk 01:30:57]} {[%emt 00:00:02]} c5 {[%clk 01:30:56]} {[%emt
00:00:05]} 2. Nf3 {[%clk 01:31:23]} {[%emt 00:00:04]} d6 {[%clk 01:31:22]}
{[%emt 00:00:03]} 3. d4 {[%clk 01:31:48]} {[%emt 00:00:05]} cxd4 {[%clk
01:31:48]} {[%emt 00:00:05]} 4. Nxd4 {[%clk 01:32:13]} {[%emt 00:00:05]} Nf6
{[%clk 01:32:10]} {[%emt 00:00:07]} 5. Nc3 {[%clk 01:32:39]} {[%emt 00:00:03]}
a6 {[%clk 01:32:36]} {[%emt 00:00:05]} 6. Bg5 {[%clk 01:32:57]} {[%emt
00:00:11]} e6 {[%clk 01:33:01]} {[%emt 00:00:06]} 7. f4 {[%clk 01:33:01]}
{[%emt 00:00:25]} h6 {[%clk 01:33:23]} {[%emt 00:00:09]} 8. Bh4 {[%clk
01:33:25]} {[%emt 00:00:06]} Qb6 {[%clk 01:33:48]} {[%emt 00:00:05]} 9. Qd2
{[%clk 01:33:23]} {[%emt 00:00:32]} Qxb2 {[%clk 01:34:12]} {[%emt 00:00:06]} 10.
Rb1 {[%clk 01:33:33]} {[%emt 00:00:21]} Qa3 {[%clk 01:34:33]} {[%emt 00:00:09]}
11. e5 {[%clk 01:32:37]} {[%emt 00:01:26]} dxe5 {[%clk 01:34:54]} {[%emt
00:00:09]} 12. fxe5 {[%clk 01:33:01]} {[%emt 00:00:06]} Nfd7 {[%clk 01:35:20]}
{[%emt 00:00:04]} 13. Ne4 {[%clk 01:32:02]} {[%emt 00:01:28]} Qxa2 {[%clk
01:35:22]} {[%emt 00:00:29]} 14. Rd1 {[%clk 01:31:58]} {[%emt 00:00:34]} Qd5
{[%clk 01:35:47]} {[%emt 00:00:05]} 15. Qe3 {[%clk 01:31:32]} {[%emt 00:00:56]}
Qxe5 {[%clk 01:35:29]} {[%emt 00:00:47]} 16. Be2 {[%clk 01:30:55]} {[%emt
00:01:07]} Bc5 {[%clk 01:31:59]} {[%emt 00:04:01]} 17. Bg3 {[%clk 01:30:37]}
{[%emt 00:00:48]} Bxd4 {[%clk 01:31:31]} {[%emt 00:00:58]} 18. Rxd4 {[%clk
01:30:47]} {[%emt 00:00:20]} Qa5+ {[%clk 01:31:54]} {[%emt 00:00:07]} 19. Rd2
{[%clk 01:31:08]} {[%emt 00:00:09]} O-O {[%clk 01:30:57]} {[%emt 00:01:27]} 20.
Bd6 {[%clk 01:30:47]} {[%emt 00:00:51]} Re8 {[%clk 01:27:28]} {[%emt 00:03:59]}
21. Qg3 {[%clk 01:23:02]} {[%emt 00:08:14]} Qa4 {[%clk 00:53:44]} {[%emt
00:34:14]} 22. Bd3 {[%clk 01:19:29]} {[%emt 00:04:03]} f5 {[%clk 00:52:32]}
{[%emt 00:01:41]} 23. Qg6 {[%clk 01:14:56]} {[%emt 00:05:03]} Rf8 {[%clk
00:49:02]} {[%emt 00:04:00]} 24. Qxe6+ {[%clk 01:10:58]} {[%emt 00:04:28]} Kh8
{[%clk 00:40:05]} {[%emt 00:09:26]} 25. Bxf8 {[%clk 01:04:32]} {[%emt
00:06:58]} fxe4 {[%clk 00:40:31]} {[%emt 00:00:04]} 26. Bc4 {[%clk 01:02:38]}
{[%emt 00:02:24]} Nf6 {[%clk 00:38:36]} {[%emt 00:02:25]} 27. Bxg7 {[%clk
01:01:59]} {[%emt 00:01:10]} Kh7 {[%clk 00:38:42]} {[%emt 00:00:24]} 28. Qxf6
{[%clk 01:01:48]} {[%emt 00:00:40]} Qxc4 {[%clk 00:38:36]} {[%emt 00:00:36]} 29.
Qxh6 {[%clk 01:01:59]} {[%emt 00:00:19]} Kg8 {[%clk 00:39:00]} {[%emt
00:00:05]} 30. Rd8+ {[%clk 01:02:21]} {[%emt 00:00:08]} Kf7 {[%clk 00:39:22]}
{[%emt 00:00:08]} 31. Qf6# {[%emt 00:00:04]} 1-0

[Event "NJSK 2018 Jeugd C"]
[Site "Assen, Netherlands"]
[Date "2018.05.03"]
[Round "7.5"]
[White "Klaren, Duncan"]
[Black "Boghossian, Wahe"]
[Result "1-0"]
[TimeControl "40/90m+30sec/move"]
[WhiteElo "1713"]
[BlackElo "1748"]

1. e4 {[%clk 01:30:57]} {[%emt 00:00:02]} e5 {[%clk 01:30:53]} {[%emt
00:00:08]} 2. Nf3 {[%clk 01:31:21]} {[%emt 00:00:07]} Nc6 {[%clk 01:31:20]}
{[%emt 00:00:02]} 3. d4 {[%clk 01:30:55]} {[%emt 00:00:57]} exd4 {[%clk
01:30:47]} {[%emt 00:01:02]} 4. Nxd4 {[%clk 01:31:21]} {[%emt 00:00:04]} Nf6
{[%clk 01:30:46]} {[%emt 00:00:31]} 5. Nxc6 {[%clk 01:31:45]} {[%emt 00:00:07]}
bxc6 {[%clk 01:30:51]} {[%emt 00:00:24]} 6. e5 {[%clk 01:32:09]} {[%emt
00:00:06]} Nd5 {[%clk 01:30:27]} {[%emt 00:00:54]} 7. c4 {[%clk 01:30:44]}
{[%emt 00:01:55]} Nb6 {[%clk 01:28:49]} {[%emt 00:02:08]} 8. Nd2 {[%clk
00:59:20]} {[%emt 00:02:24]} Be7 {[%clk 01:26:35]} {[%emt 00:02:42]} 9. b3
{[%clk 01:28:26]} {[%emt 00:00:57]} O-O {[%clk 01:26:12]} {[%emt 00:00:53]} 10.
Bb2 {[%clk 01:16:31]} {[%emt 00:12:25]} Re8 {[%clk 01:23:23]} {[%emt 00:03:18]}
11. Bd3 {[%clk 01:15:08]} {[%emt 00:01:53]} Bf6 {[%clk 01:20:20]} {[%emt
00:03:33]} 12. O-O {[%clk 01:11:20]} {[%emt 00:04:18]} Bxe5 {[%clk 01:11:10]}
{[%emt 00:09:41]} 13. Bxh7+ {[%clk 01:09:28]} {[%emt 00:02:22]} Kf8 {[%clk
01:07:14]} {[%emt 00:04:26]} 14. Bxe5 {[%clk 01:05:48]} {[%emt 00:04:11]} Rxe5
{[%clk 01:07:30]} {[%emt 00:00:13]} 15. Nf3 {[%clk 01:05:46]} {[%emt 00:00:32]}
Rh5 {[%clk 01:05:22]} {[%emt 00:02:38]} 16. Be4 {[%clk 01:00:32]} {[%emt
00:05:44]} d5 {[%clk 01:03:05]} {[%emt 00:02:47]} 17. Bc2 {[%clk 00:42:26]}
{[%emt 00:18:36]} Qd6 {[%clk 01:00:18]} {[%emt 00:03:15]} 18. Re1 {[%clk
00:34:03]} {[%emt 00:08:55]} dxc4 {[%clk 00:53:56]} {[%emt 00:06:52]} 19. bxc4
{[%clk 00:32:42]} {[%emt 00:01:51]} Be6 {[%clk 00:38:14]} {[%emt 00:16:11]} 20.
Bb3 {[%clk 00:26:32]} {[%emt 00:06:41]} Qf4 {[%clk 00:33:36]} {[%emt 00:04:58]}
21. Qe2 {[%clk 00:22:37]} {[%emt 00:04:36]} a5 {[%clk 00:25:47]} {[%emt
00:08:19]} 22. Rad1 {[%clk 00:21:21]} {[%emt 00:01:45]} c5 {[%clk 00:18:13]}
{[%emt 00:08:04]} 23. h3 {[%clk 00:19:41]} {[%emt 00:02:09]} Bxh3 {[%clk
00:14:29]} {[%emt 00:04:15]} 24. gxh3 {[%clk 00:17:12]} {[%emt 00:02:59]} Rxh3
{[%clk 00:14:40]} {[%emt 00:00:18]} 25. Qe7+ {[%clk 00:17:19]} {[%emt
00:00:23]} Kg8 {[%clk 00:14:39]} {[%emt 00:00:30]} 26. Rd8+ {[%clk 00:17:14]}
{[%emt 00:00:36]} Rxd8 {[%clk 00:14:22]} {[%emt 00:00:46]} 27. Qxd8+ {[%clk
00:17:40]} {[%emt 00:00:06]} Kh7 {[%clk 00:14:46]} {[%emt 00:00:05]} 28. Ng5
{[%clk 00:18:00]} {[%emt 00:00:10]} Kg6 {[%clk 00:15:01]} {[%emt 00:00:15]} 29.
Bc2+ {[%clk 00:17:39]} {[%emt 00:00:51]} f5 {[%clk 00:14:30]} {[%emt 00:01:01]}
30. Re6+ {[%clk 00:17:39]} {[%emt 00:00:29]} Kh5 {[%clk 00:14:31]} {[%emt
00:00:27]} 31. Qh8 {[%clk 00:17:39]} {[%emt 00:00:32]} Kxg5 {[%clk 00:14:47]}
{[%emt 00:00:14]} 32. Qxg7+ {[%clk 00:17:19]} {[%emt 00:00:51]} Kh5 {[%clk
00:14:29]} {[%emt 00:00:48]} 33. Qh7 {[%clk 00:17:12]} {[%emt 00:00:36]} Kg4
{[%clk 00:14:22]} {[%emt 00:00:37]} 34. Rg6+ {[%clk 00:17:38]} {[%emt
00:00:04]} Kf3 {[%clk 00:14:40]} {[%emt 00:00:12]} 35. Qxh3+ {[%clk 00:18:04]}
{[%emt 00:00:03]} Ke2 {[%clk 00:14:08]} {[%emt 00:01:02]} 36. Qd3+ {[%clk
00:18:30]} {[%emt 00:00:05]} Ke1 {[%clk 00:14:31]} {[%emt 00:00:07]} 37. Qd1#
{[%emt 00:00:04]} 1-0

[Event "NJSK 2018 Jeugd C"]
[Site "Assen, Netherlands"]
[Date "2018.05.03"]
[Round "7.6"]
[White "Van der Hagen, Loek"]
[Black "Brandsma, Romayn"]
[Result "0-1"]
[TimeControl "40/90m+30sec/move"]
[WhiteElo "1815"]
[BlackElo "1715"]

1. e4 {[%clk 01:30:58]} {[%emt 00:00:02]} e5 {[%clk 01:30:46]} {[%emt
00:00:14]} 2. Nf3 {[%clk 01:31:24]} {[%emt 00:00:04]} Nc6 {[%clk 01:30:59]}
{[%emt 00:00:17]} 3. Bb5 {[%clk 01:31:46]} {[%emt 00:00:08]} a6 {[%clk
01:31:11]} {[%emt 00:00:18]} 4. Ba4 {[%clk 01:32:12]} {[%emt 00:00:04]} Nf6
{[%clk 01:31:20]} {[%emt 00:00:21]} 5. O-O {[%clk 01:32:33]} {[%emt 00:00:09]}
Be7 {[%clk 01:31:25]} {[%emt 00:00:25]} 6. Re1 {[%clk 01:32:55]} {[%emt
00:00:08]} b5 {[%clk 01:31:35]} {[%emt 00:00:21]} 7. Bb3 {[%clk 01:33:21]}
{[%emt 00:00:04]} d6 {[%clk 01:31:42]} {[%emt 00:00:21]} 8. c3 {[%clk
01:33:46]} {[%emt 00:00:06]} O-O {[%clk 01:31:47]} {[%emt 00:00:26]} 9. h3
{[%clk 01:34:10]} {[%emt 00:00:05]} Nb8 {[%clk 01:31:56]} {[%emt 00:00:22]} 10.
d4 {[%clk 01:34:33]} {[%emt 00:00:07]} Nbd7 {[%clk 01:32:08]} {[%emt 00:00:17]}
11. Nbd2 {[%clk 01:34:54]} {[%emt 00:00:08]} Bb7 {[%clk 01:32:17]} {[%emt
00:00:22]} 12. Bc2 {[%clk 01:35:10]} {[%emt 00:00:14]} Re8 {[%clk 01:32:21]}
{[%emt 00:00:26]} 13. Nf1 {[%clk 01:35:34]} {[%emt 00:00:07]} Bf8 {[%clk
01:32:32]} {[%emt 00:00:18]} 14. Ng3 {[%clk 01:36:00]} {[%emt 00:00:04]} g6
{[%clk 01:32:45]} {[%emt 00:00:18]} 15. a4 {[%clk 01:36:16]} {[%emt 00:00:15]}
Bg7 {[%clk 01:30:50]} {[%emt 00:02:24]} 16. Bg5 {[%clk 01:31:44]} {[%emt
00:05:02]} h6 {[%clk 01:30:36]} {[%emt 00:00:44]} 17. Be3 {[%clk 01:31:51]}
{[%emt 00:00:23]} c5 {[%clk 01:26:49]} {[%emt 00:04:18]} 18. d5 {[%clk
01:32:02]} {[%emt 00:00:20]} c4 {[%clk 01:27:00]} {[%emt 00:00:18]} 19. Qd2
{[%clk 01:31:25]} {[%emt 00:01:08]} Kh7 {[%clk 01:26:41]} {[%emt 00:00:48]} 20.
Ra3 {[%clk 01:21:08]} {[%emt 00:10:47]} Qc7 {[%clk 01:23:59]} {[%emt 00:03:11]}
21. Rea1 {[%clk 01:17:24]} {[%emt 00:04:16]} Reb8 {[%clk 01:23:09]} {[%emt
00:01:17]} 22. Qd1 {[%clk 01:15:04]} {[%emt 00:02:53]} Bf8 {[%clk 01:17:26]}
{[%emt 00:06:13]} 23. R1a2 {[%clk 01:10:55]} {[%emt 00:04:39]} Nc5 {[%clk
01:16:09]} {[%emt 00:01:47]} 24. Qa1 {[%clk 01:10:35]} {[%emt 00:00:50]} bxa4
{[%clk 01:12:43]} {[%emt 00:03:57]} 25. Bxc5 {[%clk 01:09:11]} {[%emt
00:01:53]} Qxc5 {[%clk 01:12:35]} {[%emt 00:00:37]} 26. Rxa4 {[%clk 01:09:11]}
{[%emt 00:00:31]} Nd7 {[%clk 01:09:52]} {[%emt 00:03:12]} 27. Nd2 {[%clk
01:04:57]} {[%emt 00:04:44]} Nb6 {[%clk 01:09:07]} {[%emt 00:01:16]} 28. Ra5
{[%clk 01:05:05]} {[%emt 00:00:22]} Qc7 {[%clk 01:09:09]} {[%emt 00:00:25]} 29.
Ngf1 {[%clk 01:03:26]} {[%emt 00:02:11]} Be7 {[%clk 01:08:10]} {[%emt
00:01:29]} 30. Bd1 {[%clk 01:00:18]} {[%emt 00:03:39]} Bg5 {[%clk 01:07:40]}
{[%emt 00:01:01]} 31. Be2 {[%clk 00:58:01]} {[%emt 00:02:47]} Rc8 {[%clk
01:06:44]} {[%emt 00:01:26]} 32. Nf3 {[%clk 00:55:54]} {[%emt 00:02:37]} Be7
{[%clk 01:06:20]} {[%emt 00:00:53]} 33. Ne3 {[%clk 00:55:50]} {[%emt 00:00:34]}
Bg5 {[%clk 01:05:29]} {[%emt 00:01:22]} 34. Nxg5 {[%clk 00:54:00]} {[%emt
00:02:21]} hxg5 {[%clk 01:05:37]} {[%emt 00:00:22]} 35. Ng4 {[%clk 00:53:32]}
{[%emt 00:00:58]} Kg7 {[%clk 01:03:31]} {[%emt 00:02:35]} 36. Qc1 {[%clk
00:52:49]} {[%emt 00:01:13]} f6 {[%clk 01:01:43]} {[%emt 00:02:19]} 37. h4
{[%clk 00:45:58]} {[%emt 00:07:21]} Qe7 {[%clk 01:00:51]} {[%emt 00:01:18]} 38.
hxg5 {[%clk 00:45:09]} {[%emt 00:01:22]} fxg5 {[%clk 01:00:40]} {[%emt
00:00:41]} 39. f3 {[%clk 00:37:09]} {[%emt 00:08:30]} Rh8 {[%clk 00:57:12]}
{[%emt 00:03:58]} 40. Qe3 {[%clk 00:36:01]} {[%emt 00:01:37]} Qd8 {[%clk
00:54:55]} {[%emt 00:02:46]} 41. R5a3 {[%clk 00:30:08]} {[%emt 00:06:24]} Rh7
{[%clk 00:47:39]} {[%emt 00:07:45]} 42. b3 {[%clk 00:27:03]} {[%emt 00:03:36]}
Bc8 {[%clk 00:46:19]} {[%emt 00:01:50]} 43. bxc4 {[%clk 00:22:54]} {[%emt
00:04:38]} Bxg4 {[%clk 00:46:25]} {[%emt 00:00:24]} 44. fxg4 {[%clk 00:23:17]}
{[%emt 00:00:07]} Qh8 {[%clk 00:45:43]} {[%emt 00:01:12]} 45. Qd3 {[%clk
00:07:30]} {[%emt 00:16:17]} Rf8 {[%clk 00:42:58]} {[%emt 00:03:15]} 46. Bf3
{[%clk 00:07:26]} {[%emt 00:00:34]} Rh1+ {[%clk 00:41:59]} {[%emt 00:01:29]} 47.
Kf2 {[%clk 00:07:51]} {[%emt 00:00:05]} Qh4+ {[%clk 00:42:09]} {[%emt
00:00:19]} 48. Ke3 {[%clk 00:06:33]} {[%emt 00:01:48]} Qe1+ {[%clk 00:42:05]}
{[%emt 00:00:34]} 49. Be2 {[%clk 00:06:10]} {[%emt 00:00:54]} Qg1+ {[%clk
00:42:27]} {[%emt 00:00:08]} 50. Kd2 Qc1# {[%clk 00:42:27]} 0-1

[Event "NJSK 2018 Jeugd C"]
[Site "Assen, Netherlands"]
[Date "2018.05.03"]
[Round "7.7"]
[White "Yeh, Timo"]
[Black "Bartels, Vladimir"]
[Result "1/2-1/2"]
[TimeControl "40/90m+30sec/move"]
[WhiteElo "1729"]
[BlackElo "1757"]

1. d4 {[%clk 01:30:55]} {[%emt 00:00:05]} Nf6 {[%clk 01:30:55]} {[%emt
00:00:05]} 2. Nf3 {[%clk 01:31:13]} {[%emt 00:00:12]} e6 {[%clk 01:31:13]}
{[%emt 00:00:12]} 3. c4 {[%clk 01:31:33]} {[%emt 00:00:10]} b6 {[%clk
01:31:35]} {[%emt 00:00:08]} 4. Nc3 {[%clk 01:32:00]} {[%emt 00:00:03]} Bb4
{[%clk 01:31:45]} {[%emt 00:00:20]} 5. Bd2 {[%clk 01:32:26]} {[%emt 00:00:04]}
Bb7 {[%clk 01:31:51]} {[%emt 00:00:24]} 6. e3 {[%clk 01:32:52]} {[%emt
00:00:03]} O-O {[%clk 01:31:38]} {[%emt 00:00:43]} 7. Bd3 {[%clk 01:33:17]}
{[%emt 00:00:05]} c5 {[%clk 01:30:43]} {[%emt 00:01:25]} 8. O-O {[%clk
01:31:35]} {[%emt 00:02:12]} cxd4 {[%clk 01:24:39]} {[%emt 00:06:34]} 9. exd4
{[%clk 01:31:54]} {[%emt 00:00:11]} d5 {[%clk 01:24:21]} {[%emt 00:00:48]} 10.
a3 {[%emt 00:01:18]} Bxc3 {[%clk 01:23:23]} {[%emt 00:01:27]} 11. Bxc3 {[%clk
01:31:34]} {[%emt 00:00:02]} dxc4 {[%clk 01:21:37]} {[%emt 00:02:16]} 12. Bxc4
{[%emt 00:00:13]} Nc6 13. Re1 Rc8 14. Bb3 Nd5 15. Rc1 Qd6 16. Ng5 h6 17. Ne4
Qd7 18. Ba4 Qe7 19. Ng3 Nxc3 20. Rxc3 Qd6 21. Bxc6 Bxc6 22. Qg4 Rfd8 23. Rec1
{[%clk 01:31:50]} Qd5 {[%clk 01:16:38]} 1/2-1/2